bitfinex/quotes_SOLUSD_20250805
["timestamp","ask_amount","ask_price","bid_price","bid_amount"]
[1754392456269,22.96180445,171.1,171.09,0.06]
[1754392460265,10.09502036,171.1,171.09,0.06]
[1754392460582,6.17008717,171.1,171.09,0.06]
[1754392460783,6.88008717,171.1,171.09,0.06]
[1754392461684,32.88008717,171.1,171.09,0.06]
[1754392462381,38.72462252,171.1,171.09,0.06]
[1754392462675,64.09817217,171.1,171.09,0.06]
[1754392465158,77.23138808,171.1,171.09,0.06]
[1754392465364,36.09138808,171.1,171.09,0.06]
[1754392465560,41.17,171.11,171.09,0.73]
[1754392465561,0.03,171.11,171.09,0.73]
[1754392465772,6.20008717,171.11,171.09,0.73]
[1754392465983,32.20008717,171.11,171.09,0.73]
[1754392466509,0.03,171.11,171.09,0.73]
[1754392466788,0.03,171.11,171.1,5.84453535]
[1754392467169,0.03,171.11,171.1,6.51453535]
[1754392469474,6.20008717,171.11,171.09,0.06]
[1754392469679,6.86008717,171.1,171.09,0.06]
[1754392470386,13.17233591,171.1,171.09,0.06]
[1754392470590,17.09300389,171.1,171.09,0.06]
[1754392471069,22.93753924,171.1,171.09,0.06]
[1754392471470,16.76745207,171.1,171.09,0.06]
[1754392472779,22.93753924,171.1,171.09,0.06]
[1754392474277,15.24837714,171.09,171.08,0.06]
[1754392474478,67.16913229,171.09,171.08,0.06]
[1754392474682,67.16913229,171.09,171.07,0.06]
[1754392474889,10.23291672,171.08,171.07,0.06]
[1754392475087,10.92291672,171.08,171.07,0.06]
[1754392475785,16.76813533,171.08,171.07,0.06]
[1754392484312,31.8743509,171.08,171.07,0.06]
[1754392484581,32.17008717,171.03,171.02,0.06]
[1754392484819,36.09075515,171.03,171.02,0.06]
[1754392485982,36.09075515,171.03,171.02,0.72]
[1754392486197,40.66029517,171.03,171.02,0.72]
[1754392487509,40.66029517,171.03,171.02,0.06]
[1754392487703,88.3372226,171.03,171.02,0.06]
[1754392487884,62.3372226,171.03,171.02,0.06]
[1754392489394,61.6472226,171.03,171.02,0.06]
[1754392490716,55.80029517,171.03,171.02,0.06]
[1754392490914,55.80029517,171.03,171.02,0.72]
[1754392492184,10.09075515,171.03,171.02,0.72]
[1754392492397,6.17008717,171.03,171.02,0.72]
[1754392492601,10.09075515,171.03,171.02,0.72]
[1754392493014,40.80421412,171.03,171.02,0.72]
[1754392493187,36.09075515,171.03,171.02,0.72]
[1754392494926,32.17008717,171.03,171.02,0.72]
[1754392495720,32.17008717,171.03,171.02,6.56726932]
[1754392500823,26.0,171.03,171.02,6.56726932]
[1754392501022,32.17008717,171.04,171.02,6.56726932]
[1754392501196,32.17008717,171.04,171.02,5.90726932]
[1754392501395,32.17008717,171.04,171.03,0.7]
[1754392501805,26.0,171.07,171.03,6.87008717]
[1754392502111,18.70230767,171.1,171.04,6.87008717]
[1754392502309,29.93137619,171.09,171.05,0.7]
[1754392502515,0.03,171.09,171.05,0.7]
[1754392502721,3.96112738,171.09,171.05,0.7]
[1754392502938,29.96112738,171.09,171.05,0.7]
[1754392503135,26.03,171.09,171.06,5.84590202]
[1754392503453,0.03,171.09,171.07,0.7]
[1754392503646,3.9609537,171.09,171.07,0.7]
[1754392503936,0.03,171.09,171.08,0.7]
[1754392505012,0.03,171.09,171.08,12.71530578]
[1754392505211,12.5322205,171.1,171.08,12.71530578]
[1754392505516,12.5322205,171.1,171.09,47.99008717]
[1754392507225,12.5322205,171.1,171.09,53.83496413]
[1754392507834,18.70230767,171.1,171.06,88.0845902]
[1754392508043,18.70230767,171.1,171.06,93.34583042]
[1754392508044,13.2422205,171.1,171.06,93.34583042]
[1754392508214,6.17008717,171.09,171.06,94.04583042]
[1754392508409,13.2722205,171.1,171.06,94.04583042]
[1754392508616,18.73230767,171.1,171.07,0.7]
[1754392509440,6.17008717,171.08,171.06,5.84577525]
[1754392509920,6.88008717,171.08,171.06,5.84577525]
[1754392510533,6.17008717,171.08,171.06,5.84577525]
[1754392510737,6.17008717,171.08,171.06,6.54577525]
[1754392511641,44.73230767,171.1,171.07,0.7]
[1754392512142,38.5622205,171.1,171.07,0.7]
[1754392512343,44.73230767,171.1,171.07,0.7]
[1754392512548,44.73230767,171.1,171.06,5.84577525]
[1754392512724,39.2722205,171.1,171.06,6.54577525]
[1754392512926,6.17008717,171.09,171.06,6.54577525]
[1754392513953,39.2722205,171.1,171.06,6.54577525]
[1754392514246,6.17008717,171.09,171.06,6.54577525]
[1754392515649,39.2722205,171.1,171.06,6.54577525]
[1754392515852,6.17008717,171.09,171.06,6.54577525]
[1754392516653,6.88008717,171.08,171.06,5.84577525]
[1754392516858,0.71,171.07,171.06,5.84577525]
[1754392517156,6.17008717,171.07,171.06,5.84577525]
[1754392517331,6.88008717,171.08,171.06,5.84577525]
[1754392518039,6.17008717,171.07,171.05,46.96611707]
[1754392518239,38.5622205,171.1,171.05,41.12]
[1754392518240,6.88008717,171.06,171.05,41.12]
[1754392518437,6.88008717,171.06,171.02,88.26]
[1754392518438,6.88008717,171.06,171.02,5.90723081]
[1754392518641,6.17008717,171.03,171.02,5.90723081]
[1754392519728,6.17008717,171.03,171.02,0.06]
[1754392520060,6.88008717,171.03,171.02,0.06]
[1754392520451,6.17008717,171.03,171.02,0.06]
[1754392525263,26.0,171.06,171.02,0.06]
[1754392525566,6.17008717,171.07,171.02,6.93008717]
[1754392525740,6.17008717,171.07,171.02,6.23008717]
[1754392525938,26.0,171.07,171.03,0.7]
[1754392526169,26.0,171.07,171.04,41.1]
[1754392526472,6.20008717,171.09,171.05,0.7]
[1754392526667,6.20008717,171.09,171.06,0.7]
[1754392527170,6.20008717,171.09,171.07,5.84556029]
[1754392529074,6.20008717,171.09,171.07,46.94556029]
[1754392530171,6.88008717,171.09,171.07,46.94556029]
[1754392530672,6.20008717,171.09,171.07,46.94556029]
[1754392533272,6.20008717,171.09,171.07,47.59556029]
[1754392533673,6.88008717,171.09,171.07,41.1]
[1754392534857,26.0,171.07,171.06,87.56]
[1754392535090,32.85008717,171.07,171.06,87.56]
[1754392535285,26.0,171.07,171.06,87.56]
[1754392535453,32.17008717,171.07,171.06,87.56]
[1754392535653,32.85008717,171.07,171.06,87.56]
[1754392535864,32.17008717,171.07,171.06,87.56]
[1754392536173,26.0,171.07,171.06,87.56]
[1754392536351,32.17008717,171.07,171.06,87.56]
[1754392536548,32.85008717,171.07,171.06,87.56]
[1754392536851,36.77803107,171.07,171.06,87.56]
[1754392537050,36.77803107,171.07,171.06,0.06]
[1754392537462,42.76575293,171.07,171.06,0.06]
[1754392537664,83.86575293,171.07,171.06,0.06]
[1754392537865,98.9719685,171.07,171.06,0.06]
[1754392538069,26.0,171.03,171.02,0.06]
[1754392538271,36.09963314,171.03,171.02,0.06]
[1754392538563,10.92179471,171.03,171.02,0.06]
[1754392539171,16.76872214,171.03,171.02,0.06]
[1754392540755,31.87493771,171.03,171.02,0.06]
[1754392540974,0.14216157,171.01,171.0,0.06]
[1754392541178,73.41224874,171.01,171.0,0.06]
[1754392541366,52.02179471,171.01,171.0,0.06]
[1754392542975,57.86940596,171.01,171.0,0.06]
[1754392543189,72.97562153,171.01,171.0,0.06]
[1754392543890,79.1457087,171.01,171.0,0.06]
[1754392545182,26.0,170.97,170.92,0.2]
[1754392545385,6.17008717,170.93,170.92,0.2]
[1754392545959,6.17008717,170.94,170.92,0.85]
[1754392546164,6.17008717,170.94,170.93,0.65]
[1754392546573,6.17008717,170.94,170.92,0.2]
[1754392546775,6.17008717,170.93,170.92,0.2]
[1754392547171,6.17008717,170.93,170.92,0.85]
[1754392547490,6.17008717,170.93,170.92,6.70069038]
[1754392550099,26.0,170.93,170.92,6.70069038]
[1754392550309,26.0,170.96,170.92,6.70069038]
[1754392550597,6.17008717,170.95,170.93,0.65]
[1754392550791,6.17008717,170.95,170.92,93.55069038]
[1754392550996,0.68,170.97,170.93,0.65]
[1754392551203,41.12,170.99,170.92,93.55069038]
[1754392551204,6.17008717,170.95,170.94,0.65]
[1754392552077,6.17008717,170.95,170.94,6.50000585]
[1754392552610,32.17008717,170.96,170.94,6.50000585]
[1754392552783,32.17008717,170.96,170.95,0.65]
[1754392552986,32.17008717,170.96,170.94,5.85000585]
[1754392553292,32.17008717,170.96,170.94,6.50000585]
[1754392554009,26.0,170.96,170.95,0.65]
[1754392554182,32.17008717,170.96,170.92,93.55062265]
[1754392554383,6.17008717,170.93,170.92,87.7]
[1754392554582,32.17008717,170.93,170.92,0.2]
[1754392554787,32.85008717,170.93,170.92,0.2]
[1754392555004,32.17008717,170.93,170.92,0.2]
[1754392555192,32.17008717,170.93,170.92,6.05069038]
[1754392555502,32.17008717,170.93,170.92,6.70069038]
[1754392556010,32.17008717,170.96,170.92,6.70069038]
[1754392556219,32.17008717,170.96,170.92,6.05069038]
[1754392556384,6.17008717,170.96,170.93,0.65]
[1754392556719,6.17008717,170.96,170.92,6.05069038]
[1754392556720,32.17008717,170.96,170.94,0.65]
[1754392557283,26.0,170.96,170.95,0.65]
[1754392557617,5.37631429,170.99,170.95,0.65]
[1754392557618,4.69631429,170.99,170.95,0.65]
[1754392557831,6.17008717,170.98,170.95,0.65]
[1754392557990,26.0,170.96,170.95,0.65]
[1754392558423,26.0,170.96,170.95,6.49966364]
[1754392558908,45.85230859,171.0,170.95,6.49966364]
[1754392559087,26.0,170.97,170.96,0.66]
[1754392560404,26.0,170.97,170.96,6.50932147]
[1754392560613,26.0,170.97,170.96,5.84932147]
[1754392561488,6.17008717,170.99,170.96,5.84932147]
[1754392561702,26.0,170.97,170.96,6.50932147]
[1754392562513,32.83008717,170.97,170.94,5.85000585]
[1754392562701,6.17008717,170.95,170.93,5.8502305]
[1754392563017,6.83008717,170.95,170.93,5.8502305]
[1754392563909,6.17008717,170.95,170.93,5.8502305]
[1754392564516,32.17008717,170.96,170.94,0.66]
[1754392564712,32.17008717,170.96,170.94,6.50999505]
[1754392564932,32.17008717,170.96,170.94,5.84999505]
[1754392565227,32.17008717,170.96,170.94,6.50999505]
[1754392565606,32.17008717,170.96,170.94,5.84999505]
[1754392566920,32.17008717,170.96,170.92,41.98]
[1754392567125,32.17008717,170.96,170.93,5.85034809]
[1754392567321,26.66,170.96,170.93,6.51034809]
[1754392567508,6.17008717,170.95,170.93,5.85034809]
[1754392568205,0.66,170.95,170.93,5.85034809]
[1754392568417,6.83008717,170.95,170.93,5.85034809]
[1754392569619,26.0,170.96,170.93,5.85034809]
[1754392569930,26.0,170.96,170.94,0.66]
[1754392570816,26.0,170.96,170.93,5.85034809]
[1754392571017,26.0,170.96,170.94,6.50975837]
[1754392571805,6.17008717,170.97,170.94,5.84975837]
[1754392572133,6.83008717,170.96,170.94,5.84975837]
[1754392572336,6.17008717,170.96,170.94,5.84975837]
[1754392572631,6.83008717,170.97,170.94,5.84975837]
[1754392573428,6.83008717,170.96,170.93,5.85034809]
[1754392573605,0.66,170.95,170.93,5.85034809]
[1754392573807,0.66,170.95,170.93,5.91034809]
[1754392574232,6.17008717,170.96,170.93,5.91034809]
[1754392574434,0.66,170.94,170.93,5.91034809]
[1754392574637,32.83008717,170.94,170.93,0.06]
[1754392579549,42.59383614,170.94,170.93,0.06]
[1754392579719,57.84221328,170.94,170.93,0.06]
[1754392580550,36.74383029,170.94,170.93,0.06]
[1754392580947,42.59383614,170.94,170.93,0.06]
[1754392582040,36.08383029,170.94,170.93,0.06]
[1754392582357,42.59383614,170.94,170.93,0.06]
[1754392583224,57.84221328,170.94,170.93,0.06]
[1754392587878,62.7627642,170.94,170.93,0.06]
[1754392588040,57.84221328,170.94,170.93,0.06]
[1754392588221,62.7627642,170.94,170.93,0.06]
[1754392588919,57.84221328,170.94,170.93,0.06]
[1754392589145,62.7627642,170.94,170.93,0.06]
[1754392590145,57.84221328,170.94,170.93,0.06]
[1754392595567,57.18221328,170.94,170.93,0.06]
[1754392597460,57.84221328,170.94,170.93,0.06]
[1754392599176,57.18221328,170.94,170.93,0.06]
[1754392600484,57.84221328,170.94,170.93,0.06]
[1754392600871,57.18221328,170.94,170.93,0.06]
[1754392601995,57.84221328,170.94,170.93,0.06]
[1754392605382,98.30221328,170.94,170.93,0.06]
[1754392606876,36.08383029,170.94,170.93,0.71]
[1754392607203,83.71383614,170.94,170.93,0.06]
[1754392607368,98.96221328,170.94,170.93,0.06]
[1754392607574,103.8827642,170.94,170.93,0.06]
[1754392607969,103.8827642,170.94,170.91,0.2]
[1754392607970,15.24837714,170.93,170.91,0.2]
[1754392608199,15.24837714,170.93,170.85,0.2]
[1754392608200,41.24837714,170.89,170.85,0.2]
[1754392608389,47.41846431,170.86,170.85,0.2]
[1754392608702,92.45220743,170.86,170.85,0.2]
[1754392608994,15.24837714,170.85,170.81,0.06]
[1754392609174,25.99220743,170.85,170.81,0.06]
[1754392609994,10.08383029,170.85,170.81,0.06]
[1754392610210,10.08383029,170.85,170.84,0.85]
[1754392611801,36.08383029,170.85,170.84,0.85]
[1754392612304,36.07284229,170.85,170.84,0.85]
[1754392614101,26.0,170.85,170.84,0.85]
[1754392614680,28.11050551,170.92,170.84,100.37351728]
[1754392614681,19.98465947,170.92,170.84,100.37351728]
[1754392614886,6.17008717,170.89,170.84,99.72351728]
[1754392615122,26.0,170.88,170.85,0.65]
[1754392615416,6.17008717,170.89,170.86,5.85274493]
[1754392615785,26.0,170.88,170.87,0.65]
[1754392616717,32.17008717,170.88,170.87,0.65]
[1754392616913,32.17008717,170.88,170.85,0.65]
[1754392617110,6.17008717,170.86,170.85,0.65]
[1754392617421,6.17008717,170.86,170.84,93.5533793]
[1754392617989,6.17008717,170.86,170.85,0.65]
[1754392618192,32.17008717,170.86,170.84,87.7]
[1754392618398,26.0,170.86,170.84,87.7]
[1754392618710,10.08000696,170.85,170.84,87.7]
[1754392619818,16.64309446,170.85,170.84,0.2]
[1754392620323,57.76309446,170.85,170.84,0.2]
[1754392621730,73.0114716,170.85,170.84,0.2]
[1754392621917,53.58855148,170.82,170.81,0.06]
[1754392622117,15.24837714,170.81,170.79,0.2]
[1754392622350,72.61847127,170.8,170.79,0.2]
[1754392622541,76.30286475,170.8,170.79,0.2]
[1754392623240,82.15766568,170.8,170.79,0.2]
[1754392623816,0.14216157,170.79,170.78,0.2]
[1754392624015,25.3283841,170.79,170.78,0.2]
[1754392624237,26.0383841,170.79,170.78,0.2]
[1754392625020,10.08000696,170.79,170.78,0.2]
[1754392625223,10.08000696,170.79,170.78,0.89]
[1754392625224,51.20000696,170.79,170.78,0.89]
[1754392625526,6.17008717,170.79,170.78,0.89]
[1754392625735,32.17008717,170.79,170.78,0.89]
[1754392626128,26.0,170.79,170.78,0.89]
[1754392626325,32.17008717,170.79,170.78,0.89]
[1754392626645,5.854119,170.82,170.78,6.74548659]
[1754392626646,6.17008717,170.82,170.78,6.74548659]
[1754392626944,26.0,170.8,170.79,0.69]
[1754392627243,5.85286278,170.86,170.8,5.85480093]
[1754392627447,26.0,170.82,170.81,0.69]
[1754392628118,26.0,170.79,170.78,0.2]
[1754392628319,32.17008717,170.79,170.78,0.2]
[1754392630025,26.0,170.79,170.78,0.89]
[1754392630221,32.17008717,170.79,170.78,0.89]
[1754392630574,26.0,170.79,170.78,0.89]
[1754392630853,32.17008717,170.81,170.78,6.74548659]
[1754392631064,26.0,170.81,170.78,6.05548659]
[1754392631214,6.17008717,170.83,170.79,0.69]
[1754392631421,6.17008717,170.83,170.8,5.85480093]
[1754392631620,41.14,170.84,170.81,0.69]
[1754392631849,26.0,170.82,170.81,0.69]
[1754392632847,32.17008717,170.85,170.81,0.69]
[1754392633025,26.0,170.85,170.81,6.86008717]
[1754392633224,19.98759177,170.91,170.8,20.49180327]
[1754392633225,6.5614785,170.9,170.82,6.86008717]
[1754392633420,6.17008717,170.88,170.84,5.85343011]
[1754392633651,32.17008717,170.88,170.85,0.69]
[1754392633947,32.17008717,170.88,170.86,0.69]
[1754392634244,41.16,170.89,170.8,0.69]
[1754392634245,26.0,170.85,170.8,0.69]
[1754392634445,6.17008717,170.82,170.8,0.69]
[1754392635146,6.17008717,170.81,170.79,0.06]
[1754392635458,6.17008717,170.8,170.79,0.06]
[1754392636524,26.0,170.82,170.79,0.06]
[1754392636752,6.17008717,170.8,170.79,0.06]
[1754392636958,6.17008717,170.8,170.79,0.75]
[1754392639371,6.17008717,170.8,170.79,0.06]
[1754392640745,26.0,170.8,170.79,0.06]
[1754392640946,32.17008717,170.8,170.79,0.06]
[1754392641480,80.25017434,170.8,170.79,0.06]
[1754392641681,101.21119084,170.8,170.79,0.06]
[1754392641848,105.11161376,170.8,170.79,0.06]
[1754392645250,77.27051009,170.8,170.79,0.06]
[1754392645556,83.12531102,170.8,170.79,0.06]
[1754392645759,83.83531102,170.8,170.79,0.06]
[1754392645959,77.27051009,170.8,170.79,0.06]
[1754392646176,83.83531102,170.8,170.79,0.06]
[1754392646354,90.00539819,170.8,170.79,0.06]
[1754392648450,105.25377533,170.8,170.79,0.06]
[1754392648646,15.10621557,170.79,170.78,0.2]
[1754392648852,25.89672566,170.79,170.78,0.2]
[1754392649967,31.7518694,170.79,170.78,0.2]
[1754392650350,31.0318694,170.79,170.78,0.2]
[1754392650552,31.7518694,170.79,170.78,0.2]
[1754392650873,57.7518694,170.79,170.78,0.2]
[1754392651077,36.07051009,170.79,170.78,0.2]
[1754392653007,10.07051009,170.79,170.78,0.86]
[1754392654491,6.17008717,170.79,170.78,0.86]
[1754392655095,6.17008717,170.79,170.78,0.2]
[1754392657497,6.17008717,170.79,170.78,0.86]
[1754392657908,6.17008717,170.79,170.78,0.2]
[1754392658104,6.17008717,170.79,170.78,0.86]
[1754392660415,6.17008717,170.79,170.78,0.2]
[1754392662785,10.07359403,170.79,170.78,0.2]
[1754392663807,3.90350686,170.79,170.78,0.2]
[1754392664004,10.07359403,170.79,170.78,0.2]
[1754392665413,6.17008717,170.79,170.78,0.2]
[1754392666115,10.07359403,170.79,170.78,0.2]
[1754392666429,10.79359403,170.79,170.78,0.2]
[1754392666912,10.07359403,170.79,170.78,0.2]
[1754392667306,6.17008717,170.79,170.78,0.2]
[1754392667503,10.07359403,170.79,170.78,0.2]
[1754392667711,10.07359403,170.79,170.78,0.86]
[1754392668014,3.90350686,170.79,170.78,0.86]
[1754392668217,32.17008717,170.79,170.78,0.2]
[1754392668408,36.79359403,170.79,170.78,0.2]
[1754392668721,77.93359403,170.79,170.78,0.2]
[1754392669098,77.21359403,170.79,170.78,0.2]
[1754392669427,77.93359403,170.79,170.78,0.2]
[1754392670200,83.78873777,170.79,170.78,0.2]
[1754392672631,98.89495334,170.79,170.78,0.2]
[1754392674919,103.77632954,170.79,170.78,0.2]
[1754392675720,103.91849111,170.79,170.78,0.2]
[1754392676332,103.77632954,170.79,170.78,0.2]
[1754392676631,87.95011397,170.79,170.78,0.2]
[1754392676827,77.21359403,170.79,170.78,0.2]
[1754392677419,83.78873777,170.79,170.78,0.2]
[1754392678208,83.06873777,170.79,170.78,0.2]
[1754392678548,87.95011397,170.79,170.78,0.2]
[1754392678729,36.07359403,170.79,170.78,0.92]
[1754392678904,51.21359403,170.79,170.78,0.92]
[1754392679342,10.07359403,170.79,170.78,0.92]
[1754392679516,36.07359403,170.79,170.78,0.92]
[1754392680231,29.90350686,170.79,170.78,0.92]
[1754392680533,36.07359403,170.79,170.78,0.92]
[1754392681534,36.07359403,170.79,170.78,0.2]
[1754392682047,36.07359403,170.79,170.78,0.92]
[1754392682429,36.07359403,170.79,170.78,0.2]
[1754392683838,29.90350686,170.79,170.78,0.2]
[1754392684030,36.07359403,170.79,170.78,0.2]
[1754392684645,29.90350686,170.79,170.78,0.2]
[1754392684956,36.07359403,170.79,170.78,0.2]
[1754392685264,36.07359403,170.79,170.78,0.92]
[1754392686327,29.90350686,170.79,170.78,0.92]
[1754392686527,36.07359403,170.79,170.78,0.92]
[1754392686952,36.07359403,170.79,170.78,0.2]
[1754392688044,10.76359403,170.79,170.78,0.2]
[1754392688840,3.90350686,170.79,170.78,12.94557376]
[1754392689045,3.90350686,170.8,170.78,6.77548659]
[1754392689220,26.03,170.81,170.78,12.22557376]
[1754392689420,3.9037552,170.8,170.79,0.72]
[1754392689625,26.03,170.81,170.79,0.72]
[1754392690158,0.03,170.81,170.79,0.72]
[1754392690342,3.93414704,170.81,170.79,0.72]
[1754392690543,3.93414704,170.81,170.79,6.89008717]
[1754392690757,0.03,170.81,170.8,6.57480093]
[1754392691165,0.03,170.81,170.8,12.7448881]
[1754392691448,0.03,170.81,170.8,12.88704967]
[1754392692633,0.03,170.81,170.8,6.57480093]
[1754392694459,6.20008717,170.81,170.78,0.92]
[1754392694761,32.17008717,170.79,170.78,0.2]
[1754392696649,0.69,170.8,170.78,0.2]
[1754392696832,6.17008717,170.79,170.78,0.2]
[1754392697037,6.17008717,170.79,170.78,6.77548659]
[1754392697552,6.17008717,170.8,170.78,6.77548659]
[1754392697754,6.17008717,170.79,170.78,0.92]
[1754392698143,32.17008717,170.79,170.78,6.77548659]
[1754392698341,6.17008717,170.79,170.78,6.77548659]
[1754392699337,26.0,170.8,170.78,6.77548659]
[1754392699542,32.17008717,170.8,170.78,6.77548659]
[1754392701052,32.17008717,170.8,170.78,6.05548659]
[1754392701367,6.17008717,170.79,170.78,6.05548659]
[1754392702667,26.0,170.8,170.78,6.77548659]
[1754392702971,32.17008717,170.8,170.78,6.77548659]
[1754392703661,32.17008717,170.8,170.79,0.72]
[1754392704544,32.17008717,170.8,170.78,6.05548659]
[1754392704767,32.17008717,170.8,170.78,6.77548659]
[1754392704949,26.0,170.8,170.79,0.72]
[1754392705286,0.03,170.81,170.79,0.72]
[1754392706293,0.03,170.81,170.79,6.89008717]
[1754392706465,0.03,170.81,170.8,6.17008717]
[1754392706644,0.03,170.81,170.8,7.03224874]
[1754392707056,0.03,170.81,170.8,12.88704967]
[1754392708082,0.03,170.82,170.8,12.88704967]
[1754392708286,0.03,170.85,170.83,0.14216157]
[1754392708488,0.03,170.85,170.84,6.17008717]
[1754392708692,0.03,170.85,170.84,6.89008717]
[1754392708863,1e-08,170.85,170.84,7.03224874]
[1754392709185,1e-08,170.85,170.84,27.99189442]
[1754392711467,1e-08,170.85,170.84,21.82180725]
[1754392711788,1e-08,170.85,170.84,27.99189442]
[1754392711995,1e-08,170.87,170.84,42.62546969]
[1754392712191,1e-08,170.87,170.86,21.41846431]
[1754392712601,1e-08,170.87,170.86,22.09846431]
[1754392713381,1e-08,170.87,170.86,27.95120924]
[1754392714383,0.03,170.94,170.9,0.14216157]
[1754392714583,0.03,170.94,170.92,6.17008717]
[1754392714772,0.03,170.94,170.92,6.85008717]
[1754392714974,0.03,170.94,170.93,0.68]
[1754392715195,0.03,170.94,170.91,47.31008717]
[1754392715394,0.67,170.93,170.92,5.85069038]
[1754392716603,0.03,170.94,170.92,5.85069038]
[1754392716906,0.7,170.94,170.92,5.85069038]
[1754392717696,0.7,170.94,170.91,47.31008717]
[1754392717697,6.87008717,170.94,170.91,46.99091844]
[1754392717912,6.84008717,170.93,170.9,93.35124833]
[1754392718203,6.84008717,170.92,170.89,93.35166973]
[1754392718501,0.67,170.91,170.89,93.35166973]
[1754392720000,0.03,170.94,170.9,47.97008717]
[1754392720300,0.03,170.94,170.92,6.17008717]
[1754392721705,0.67,170.93,170.91,6.17008717]
[1754392722013,0.67,170.93,170.92,5.85069038]
[1754392723007,0.03,170.94,170.92,5.85069038]
[1754392723209,0.03,170.94,170.92,6.53069038]
[1754392723513,0.03,170.94,170.92,5.85069038]
[1754392724292,0.7,170.94,170.92,5.85069038]
[1754392724996,0.03,170.94,170.92,6.53069038]
[1754392725303,0.03,170.94,170.92,5.85069038]
[1754392725510,0.7,170.94,170.92,5.85069038]
[1754392725712,0.03,170.94,170.92,46.95069038]
[1754392725905,0.03,170.94,170.92,47.63069038]
[1754392726101,0.03,170.94,170.93,6.53034809]
[1754392726502,0.03,170.94,170.93,12.70043526]
[1754392728304,1e-08,170.94,170.93,28.5338472]
[1754392729603,1e-08,170.94,170.93,27.9488124]
[1754392729803,1e-08,170.94,170.93,12.70043526]
[1754392730303,1e-08,170.94,170.93,5.85034809]
[1754392730724,1e-08,170.94,170.93,46.95034809]
[1754392730918,0.67000001,170.94,170.93,46.95034809]
[1754392731108,1e-08,170.94,170.93,53.80043526]
[1754392732526,1e-08,170.94,170.93,46.95034809]
[1754392733030,0.67000001,170.94,170.93,41.12]
[1754392733214,0.67000001,170.94,170.92,41.12]
[1754392733900,1e-08,170.94,170.93,5.85034809]
[1754392734394,1e-08,170.94,170.93,6.53034809]
[1754392734629,1e-08,170.94,170.93,5.85034809]
[1754392736600,1e-08,170.94,170.93,12.70043526]
[1754392736924,1e-08,170.94,170.93,6.53034809]
[1754392737600,1e-08,170.94,170.93,5.85034809]
[1754392738216,1e-08,170.94,170.93,6.53034809]
[1754392738418,1e-08,170.94,170.93,5.85034809]
[1754392739020,1e-08,170.94,170.93,6.56034809]
[1754392739409,1e-08,170.94,170.93,5.85034809]
[1754392740033,32.84008718,170.94,170.92,5.8506297]
[1754392740227,0.67,170.93,170.91,128.6]
[1754392740428,32.17008718,170.94,170.91,134.45092068]
[1754392740617,0.67,170.93,170.91,134.45092068]
[1754392741022,32.17008718,170.94,170.91,134.45092068]
[1754392741217,26.0,170.93,170.91,134.45092068]
[1754392741539,26.0,170.93,170.91,135.16092068]
[1754392741907,1e-08,170.94,170.91,135.16092068]
[1754392742341,1e-08,170.94,170.91,135.06911168]
[1754392742541,1e-08,170.94,170.91,134.35911168]
[1754392742711,0.67000001,170.94,170.91,134.35911168]
[1754392743914,1e-08,170.94,170.91,134.35911168]
[1754392744112,1e-08,170.94,170.93,6.17008717]
[1754392744311,1e-08,170.94,170.93,47.29008717]
[1754392744536,1e-08,170.94,170.93,48.00008717]
[1754392744743,1e-08,170.94,170.93,54.43547006]
[1754392745037,1e-08,170.94,170.93,69.6838472]
[1754392745838,0.03,170.96,170.95,0.14216157]
[1754392745839,1e-08,170.96,170.95,0.14216157]
[1754392746137,1e-08,170.96,170.95,41.14]
[1754392747135,1e-08,170.96,170.95,46.98966364]
[1754392749618,1e-08,170.96,170.95,53.86975081]
[1754392749947,1e-08,170.96,170.95,69.11812795]